bitfinex/quotes_SOLUSD_20260113
["timestamp","ask_amount","ask_price","bid_price","bid_amount"]
[1768292952646,5.31511434,140.66,140.63,0.89647292]
[1768292952940,2.07035085,140.67,140.63,0.89647292]
[1768292954250,2.07035085,140.68,140.64,0.69647292]
[1768292954448,2.07035085,140.69,140.64,0.69647292]
[1768292955158,2.07035085,140.69,140.63,9.3811969]
[1768292955159,109.80727103,140.71,140.66,0.71627763]
[1768292955361,2.07035085,140.7,140.64,0.71627763]
[1768292955560,2.07035085,140.7,140.65,0.71627763]
[1768292956163,2.07035085,140.69,140.65,0.71627763]
[1768292957061,2.07035085,140.69,140.65,7.82602465]
[1768292958056,2.07035085,140.68,140.65,0.71627763]
[1768292960447,7.10732054,140.7,140.65,0.71627763]
[1768292960646,2.07035085,140.68,140.65,0.71627763]
[1768292960944,2.07035085,140.66,140.64,0.71627763]
[1768292961160,2.07035085,140.67,140.64,0.71627763]
[1768292961462,2.07035085,140.67,140.63,0.2]
[1768292962278,24.87562189,140.7,140.63,0.91627763]
[1768292962464,2.07035085,140.67,140.63,0.91627763]
[1768292962980,9.17920697,140.67,140.63,0.91627763]
[1768292964245,2.07035085,140.66,140.63,0.91627763]
[1768292964444,9.17920697,140.67,140.63,0.91627763]
[1768292964972,7.38423748,140.66,140.63,0.91627763]
[1768292965164,2.07035085,140.66,140.63,0.91627763]
[1768292965773,2.04035085,140.66,140.63,0.91627763]
[1768292965949,9.17920697,140.67,140.63,0.91627763]
[1768292966149,5.31413011,140.66,140.63,0.91627763]
[1768292966479,9.17920697,140.67,140.63,0.91627763]
[1768292966777,5.31437523,140.66,140.63,0.91627763]
[1768292967073,2.07035085,140.67,140.63,0.91627763]
[1768292967248,7.38452796,140.66,140.64,0.71627763]
[1768292967449,2.07035085,140.66,140.64,0.71627763]
[1768292967971,2.04035082,140.66,140.64,0.71627763]
[1768292969777,2.07035085,140.67,140.64,0.71627763]
[1768292969969,5.31591898,140.66,140.64,0.71627763]
[1768292970272,2.07035085,140.66,140.64,0.71627763]
[1768292971352,3.23800757,140.66,140.64,0.71627763]
[1768292972980,3.23800757,140.66,140.63,0.91627763]
[1768292975749,3.23800757,140.64,140.61,0.87835545]
[1768292976473,3.23800757,140.64,140.62,0.67835545]
[1768292976675,3.23800757,140.63,140.62,0.67835545]
[1768292978966,3.23800757,140.63,140.61,0.2]
[1768292979167,3.23800757,140.63,140.59,0.87835545]
[1768292979168,3.23800757,140.62,140.59,0.87835545]
[1768292979362,7.11103635,140.63,140.59,0.87835545]
[1768292979558,8.5582174,140.62,140.59,0.87835545]
[1768292979761,3.23800757,140.62,140.6,0.67835545]
[1768292980282,3.23800757,140.61,140.59,0.2]
[1768292981185,3.23800757,140.62,140.59,0.2]
[1768292981383,3.23800757,140.62,140.59,0.87835545]
[1768292981587,3.23800757,140.61,140.59,0.87835545]
[1768292981760,3.23800757,140.61,140.59,0.2]
[1768292982078,7.11169285,140.62,140.58,0.2]
[1768292982079,3.23800757,140.6,140.58,0.2]
[1768292983480,3.23800757,140.59,140.58,0.2]
[1768292983681,3.20800758,140.59,140.58,0.2]
[1768292983894,3.20800758,140.59,140.56,0.67835545]
[1768292984181,3.23800757,140.58,140.56,0.67835545]
[1768292984398,3.23800757,140.58,140.55,13.85835545]
[1768292984566,3.23800757,140.56,140.55,0.2]
[1768292985262,3.23800757,140.57,140.55,0.2]
[1768292986970,3.23800757,140.58,140.55,0.2]
[1768292992587,3.23800757,140.58,140.55,0.87835545]
[1768292992793,7.11313138,140.59,140.56,0.67835545]
[1768292992794,10.35113895,140.59,140.56,0.67835545]
[1768292993693,3.23800757,140.58,140.56,0.67835545]
[1768292997105,3.23800757,140.58,140.55,0.2]
[1768292997106,3.23800757,140.64,140.58,0.67835545]
[1768292997282,8.53372632,140.63,140.59,0.67835545]
[1768292997481,3.23800757,140.63,140.59,0.67835545]
[1768292997802,3.23800757,140.63,140.6,0.67835545]
[1768293000478,10.34918396,140.63,140.6,0.67835545]
[1768293000800,3.23800757,140.61,140.58,0.67835545]
[1768293001189,3.23800757,140.62,140.58,0.67835545]
[1768293002203,10.34955201,140.62,140.58,0.67835545]
[1768293002696,7.11103167,140.63,140.58,0.67835545]
[1768293002894,10.34903924,140.63,140.59,0.67835545]
[1768293003078,7.11103167,140.63,140.59,0.67835545]
[1768293003281,10.34903924,140.63,140.59,0.67835545]
[1768293003498,102.7,140.66,140.6,0.67835545]
[1768293003801,105.93800757,140.66,140.62,0.67835545]
[1768293004097,113.04747624,140.66,140.62,0.67835545]
[1768293004474,113.04747624,140.66,140.61,0.67835545]
[1768293004675,3.23800757,140.64,140.61,0.67835545]
[1768293008414,3.23800757,140.63,140.61,0.67835545]
[1768293009509,7.11042336,140.64,140.61,0.67835545]
[1768293009718,3.23800757,140.63,140.61,0.67835545]
[1768293009906,3.23800757,140.64,140.61,0.67835545]
[1768293012821,3.23800757,140.64,140.59,24.03840385]
[1768293013001,5.30361669,140.63,140.6,0.70762562]
[1768293013203,3.23800757,140.64,140.6,0.70762562]
[1768293013894,5.30447437,140.63,140.6,0.70762562]
[1768293014102,3.23800757,140.64,140.6,0.70762562]
[1768293014410,5.30538688,140.63,140.6,0.70762562]
[1768293014711,3.23800757,140.64,140.6,0.70762562]
[1768293014916,5.30538557,140.63,140.6,0.70762562]
[1768293015219,3.23800757,140.64,140.6,0.70762562]
[1768293015421,5.30635742,140.63,140.6,0.70762562]
[1768293015604,3.23800757,140.64,140.6,0.70762562]
[1768293015907,5.30641278,140.63,140.6,0.70762562]
[1768293016108,3.23800757,140.64,140.6,0.70762562]
[1768293016315,5.30745975,140.63,140.6,0.70762562]
[1768293016615,3.23800757,140.64,140.6,0.70762562]
[1768293016814,5.30745844,140.63,140.6,0.70762562]
[1768293017012,3.23800757,140.64,140.6,0.70762562]
[1768293017206,5.30745844,140.63,140.6,0.70762562]
[1768293017407,3.23800757,140.64,140.6,0.70762562]
[1768293017628,5.3085838,140.63,140.6,0.70762562]
[1768293017826,3.23800757,140.64,140.6,0.70762562]
[1768293018028,5.30858249,140.63,140.6,0.70762562]
[1768293018222,3.23800757,140.64,140.6,0.70762562]
[1768293018422,5.30979852,140.63,140.6,0.70762562]
[1768293018719,3.23800757,140.64,140.6,0.70762562]
[1768293018928,5.30979721,140.63,140.6,0.70762562]
[1768293019125,3.23800757,140.64,140.6,0.70762562]
[1768293019329,5.31109801,140.63,140.6,0.70762562]
[1768293019528,5.31109801,140.62,140.6,0.70762562]
[1768293019731,3.23800757,140.64,140.6,0.70762562]
[1768293019914,5.31109932,140.63,140.6,0.70762562]
[1768293020229,5.31109932,140.62,140.6,0.70762562]
[1768293020409,3.23800757,140.64,140.6,0.70762562]
[1768293020609,5.31251103,140.63,140.61,0.69722187]
[1768293020829,5.31251103,140.62,140.61,0.69722187]
[1768293024550,8.5505186,140.62,140.58,0.69722187]
[1768293024714,8.5505186,140.61,140.57,0.69722187]
[1768293024914,5.31251103,140.6,140.57,0.69722187]
[1768293025219,5.31251103,140.59,140.57,0.69722187]
[1768293025410,3.23800757,140.61,140.57,0.69722187]
[1768293025606,8.55380921,140.6,140.57,0.69722187]
[1768293025836,5.31580164,140.59,140.57,0.69722187]
[1768293026526,5.31580164,140.58,140.57,0.69722187]
[1768293026734,5.31580164,140.59,140.57,0.69722187]
[1768293027042,5.31580164,140.58,140.56,0.69722187]
[1768293027220,3.23800757,140.6,140.56,0.69722187]
[1768293027538,5.31567144,140.59,140.56,0.69722187]
[1768293027731,5.31567144,140.58,140.56,0.69722187]
[1768293028038,3.23800757,140.6,140.56,0.69722187]
[1768293028225,5.31552293,140.59,140.56,0.69722187]
[1768293028425,5.31552293,140.58,140.56,0.69722187]
[1768293028630,10.35052554,140.6,140.56,0.69722187]
[1768293028829,3.23800757,140.58,140.55,0.89722187]
[1768293029627,3.23800757,140.59,140.56,0.69722187]
[1768293029821,5.31476725,140.58,140.56,0.69722187]
[1768293030024,10.35052554,140.6,140.56,0.69722187]
[1768293030243,5.31461075,140.59,140.56,0.69722187]
[1768293030439,5.31461075,140.58,140.56,0.69722187]
[1768293030637,10.35052554,140.6,140.56,0.69722187]
[1768293030935,5.31451558,140.59,140.56,0.69722187]
[1768293031125,5.31451558,140.58,140.56,0.69722187]
[1768293031326,10.35052554,140.6,140.56,0.69722187]
[1768293031521,0.1073791,140.63,140.58,3.23800757]
[1768293031727,0.71938123,140.64,140.59,3.21248564]
[1768293031944,0.71938123,140.64,140.6,3.23800757]
[1768293033344,0.71938123,140.64,140.6,2.07261769]
[1768293036622,0.71938123,140.64,140.59,7.80985134]
[1768293036840,0.71938123,140.64,140.6,0.71317271]
[1768293037035,2.79199892,140.64,140.6,0.71317271]
[1768293039541,9.902423,140.64,140.6,0.71317271]
[1768293040250,2.07261769,140.63,140.6,0.71317271]
[1768293040548,2.07261769,140.62,140.6,0.71317271]
[1768293042852,2.07261769,140.61,140.58,0.71317271]
[1768293044940,2.07261769,140.61,140.58,7.82648394]
[1768293045146,2.07261769,140.61,140.59,0.71317271]
[1768293046340,2.76480833,140.61,140.57,0.71317271]
[1768293046653,2.07261769,140.61,140.57,0.71317271]
[1768293049258,2.07261769,140.61,140.58,0.71317271]
[1768293049446,0.69219064,140.62,140.58,0.71317271]
[1768293049758,2.76480833,140.62,140.58,0.71317271]
[1768293052144,2.07261769,140.61,140.58,7.82637474]
[1768293058447,120.47445977,140.66,140.59,0.71317271]
[1768293058448,0.69219064,140.65,140.59,0.71317271]
[1768293058652,2.76480833,140.62,140.59,0.71317271]
[1768293059748,2.07261769,140.62,140.59,7.82587771]
[1768293061362,2.76480833,140.62,140.59,7.82587771]
[1768293061569,2.07261769,140.61,140.59,7.112705]
[1768293065369,2.76480833,140.62,140.59,7.112705]
[1768293065569,0.66145604,140.63,140.59,0.71276538]
[1768293065767,2.73407373,140.63,140.59,0.71276538]
[1768293066076,2.73407373,140.65,140.59,0.71276538]
[1768293066278,7.27178756,140.64,140.59,0.71276538]
[1768293066479,2.73407373,140.64,140.59,0.71276538]
[1768293068472,2.73407373,140.64,140.61,0.71276538]
[1768293069679,2.73407373,140.64,140.61,7.82431966]
[1768293071885,0.66145604,140.64,140.61,7.82431966]
[1768293072060,2.73407373,140.64,140.61,7.82431966]
[1768293073083,5.23224496,140.63,140.61,7.82431966]
[1768293073285,2.73407373,140.64,140.61,7.82431966]
[1768293073485,5.23217608,140.63,140.61,7.82431966]
[1768293073780,2.73407373,140.64,140.61,7.82431966]
[1768293073975,5.23217608,140.63,140.61,7.82431966]
[1768293074175,2.73407373,140.64,140.61,7.82431966]
[1768293074475,5.23374477,140.63,140.61,7.82431966]
[1768293074676,2.73407373,140.64,140.61,7.82431966]
[1768293074889,0.66145604,140.66,140.62,0.71276538]
[1768293075080,2.73407373,140.66,140.62,0.71276538]
[1768293076473,2.73407373,140.66,140.63,7.11085828]
[1768293077982,2.07261769,140.65,140.63,7.11085828]
[1768293079690,2.73407373,140.66,140.63,7.11085828]
[1768293080092,2.07261769,140.65,140.63,7.11085828]
[1768293082598,2.74502954,140.65,140.63,7.11085828]
[1768293083294,0.67241185,140.64,140.63,7.11085828]
[1768293083479,2.74502954,140.65,140.61,17.77967427]
[1768293085205,2.74502954,140.66,140.61,17.77967427]
[1768293085380,2.07261769,140.65,140.61,17.77967427]
[1768293087183,2.74502954,140.64,140.6,7.11237553]
[1768293087779,2.74502954,140.65,140.6,24.89331436]
[1768293088296,0.67241185,140.65,140.6,24.89331436]
[1768293088498,2.74502954,140.65,140.6,24.89331436]
[1768293090881,0.67241185,140.64,140.6,24.89331436]
[1768293093006,2.74502954,140.65,140.6,17.78093883]
[1768293093501,2.74502954,140.66,140.6,19.85355652]
[1768293093685,0.67241185,140.66,140.6,19.85355652]
[1768293094883,0.67241185,140.66,140.6,26.96593205]
[1768293095305,0.67241185,140.66,140.6,28.13099652]
[1768293095306,3.91009401,140.66,140.6,28.13099652]
[1768293098404,0.65620198,140.67,140.62,3.23768216]
[1768293098606,3.23768216,140.69,140.63,0.65620198]
[1768293098795,3.23768216,140.69,140.64,0.65620198]
[1768293099601,3.23768216,140.71,140.66,0.65620198]
[1768293100708,0.65620198,140.7,140.66,7.76520614]
[1768293103411,0.65620198,140.7,140.66,7.10900416]
[1768293104605,0.65620198,140.7,140.66,7.76520614]
[1768293105916,0.65620198,140.7,140.66,7.10900416]
[1768293106317,0.65620198,140.69,140.66,7.10900416]
[1768293106995,0.65620198,140.69,140.66,7.76520614]
[1768293111016,0.65620198,140.69,140.65,7.76604911]
[1768293113915,0.65620198,140.69,140.64,0.65620198]
[1768293114106,0.65620198,140.67,140.63,0.65620198]
[1768293115098,0.65620198,140.67,140.64,7.76655465]
[1768293124422,0.65620198,140.67,140.64,7.11035267]
[1768293126723,0.68116852,140.66,140.62,25.54597582]
[1768293128433,0.65116852,140.66,140.62,25.54597582]
[1768293132929,0.68116852,140.65,140.62,7.11136395]
[1768293133236,0.68116852,140.64,140.61,7.11170606]
[1768293133945,0.68116852,140.64,140.62,7.11132811]
[1768293135138,0.68116852,140.64,140.61,0.667719]
[1768293137242,0.68116852,140.64,140.62,7.11136395]
[1768293139641,0.71327666,140.63,140.6,7.11237553]
[1768293141743,3.95095882,140.63,140.6,7.11237553]
[1768293142420,3.92095883,140.63,140.6,7.11237553]
[1768293143044,3.92095883,140.63,140.6,0.667719]
[1768293143537,3.23768216,140.66,140.61,0.667719]
[1768293143741,3.23768216,140.67,140.62,0.667719]
[1768293144346,3.23768216,140.66,140.62,0.667719]
[1768293144525,3.95095882,140.66,140.63,7.11085828]
[1768293148738,3.23768216,140.64,140.59,0.667719]
[1768293148938,3.89095884,140.63,140.6,0.667719]
[1768293149326,3.86095885,140.63,140.6,0.667719]
[1768293149931,3.23768216,140.62,140.6,0.667719]
[1768293150127,3.20768217,140.62,140.6,7.77995162]
[1768293153851,3.20768217,140.62,140.61,0.667719]
[1768293154143,3.20768217,140.62,140.58,17.78244487]
[1768293154144,3.20768217,140.62,140.58,24.89583226]
[1768293154854,0.70138648,140.61,140.58,24.89583226]
[1768293155152,3.20768217,140.62,140.6,0.70671789]
[1768293155953,3.17768218,140.62,140.6,0.70671789]
[1768293157447,2.07342366,140.62,140.6,0.70671789]
[1768293159971,2.77481014,140.62,140.58,7.81995343]
[1768293160254,2.07342366,140.61,140.58,7.81995343]
[1768293161036,2.07342366,140.6,140.58,7.81995343]
[1768293161352,2.07342366,140.59,140.57,0.70671789]
[1768293161547,2.07342366,140.58,140.57,0.70671789]
[1768293161757,2.77481014,140.6,140.57,0.70671789]
[1768293162051,2.07342366,140.58,140.57,0.70671789]
[1768293162631,2.04342367,140.58,140.57,0.70671789]
[1768293163544,2.74481015,140.58,140.56,7.11424697]
[1768293164051,2.04342367,140.58,140.56,7.82096486]
[1768293164253,2.04342367,140.58,140.56,7.11424697]
[1768293164756,2.04342367,140.58,140.56,7.82096486]
[1768293165757,2.04342367,140.58,140.55,8.02145695]
[1768293168253,2.07342366,140.57,140.55,8.02145695]
[1768293168560,2.04342367,140.57,140.55,0.90671789]
[1768293169246,0.70138648,140.58,140.55,0.90671789]
[1768293169447,2.07342366,140.57,140.55,8.02161657]
[1768293170366,2.77481014,140.58,140.55,8.02161657]
[1768293170952,2.07342366,140.58,140.56,0.70671789]
[1768293171155,0.70138648,140.59,140.56,0.70671789]
[1768293171360,2.07342366,140.59,140.56,0.70671789]
[1768293171561,2.77481014,140.59,140.56,0.70671789]
[1768293173260,2.07342366,140.58,140.56,7.8211041]
[1768293175177,2.77481014,140.58,140.56,7.11438621]
[1768293176165,2.07342366,140.57,140.55,8.02156519]
[1768293177860,2.77481014,140.57,140.55,7.3148473]
[1768293181571,0.70138648,140.57,140.55,7.3148473]
[1768293182674,2.07342366,140.58,140.55,7.3148473]
[1768293182846,2.07342366,140.58,140.55,8.02156519]
[1768293184670,2.79145196,140.58,140.55,8.02156519]
[1768293188572,2.07342366,140.58,140.56,0.70479088]
[1768293191669,2.07342366,140.58,140.56,7.81894851]
[1768293192974,2.75365492,140.58,140.56,7.11415763]
[1768293193981,2.75365492,140.58,140.56,7.81894851]
[1768293196288,2.07342366,140.58,140.56,7.81894851]
[1768293198591,0.6809795,140.62,140.58,0.68170044]
[1768293198795,0.65546922,140.62,140.58,0.68170044]
[1768293199572,0.65546922,140.62,140.59,7.79458186]
[1768293199970,2.72889288,140.62,140.59,7.79458186]
[1768293205375,2.07342366,140.61,140.59,7.79458186]
[1768293205574,2.75440316,140.61,140.58,0.68170044]
[1768293205894,2.07342366,140.61,140.58,0.68170044]
[1768293206776,2.07342366,140.61,140.59,7.11288142]
[1768293206977,2.07342366,140.61,140.59,7.79458186]
[1768293207905,2.75440316,140.61,140.59,7.79458186]
[1768293208123,0.6809795,140.61,140.59,7.79458186]
[1768293210795,0.6809795,140.61,140.58,0.68170044]
[1768293212206,0.6809795,140.61,140.59,0.68170044]
[1768293216218,0.6809795,140.61,140.59,7.79449456]
[1768293216505,0.6809795,140.61,140.59,7.81151907]
[1768293216915,2.07342366,140.6,140.58,0.69872495]
[1768293218412,2.7268968,140.6,140.57,0.69872495]
[1768293218595,2.7268968,140.6,140.58,7.11333971]
[1768293219312,3.89407339,140.6,140.58,7.11333971]
[1768293222617,3.24060025,140.6,140.58,7.81206466]
[1768293229923,0.65347314,140.63,140.59,0.69872495]
[1768293230225,0.65347314,140.61,140.59,0.69872495]
[1768293230422,3.24060025,140.63,140.59,0.69872495]
[1768293230626,102.7,140.67,140.6,0.69872495]
[1768293230818,3.24060025,140.68,140.6,0.69872495]
[1768293231129,3.24060025,140.65,140.6,0.69872495]
[1768293231704,3.24060025,140.65,140.61,7.11186971]
[1768293231908,3.24060025,140.65,140.62,0.69872495]
[1768293232509,3.24060025,140.67,140.62,0.69872495]
[1768293232711,0.62614717,140.66,140.62,0.69872495]
[1768293233335,3.86674742,140.66,140.62,0.69872495]
[1768293234114,3.86674742,140.66,140.63,7.11085828]
[1768293236314,3.86674742,140.66,140.63,0.69872495]
[1768293238743,3.33960025,140.65,140.62,0.69872495]
[1768293240442,3.33960025,140.65,140.62,7.80973158]
[1768293246045,0.099,140.65,140.62,7.80973158]
[1768293246251,3.33960025,140.65,140.62,7.80973158]
[1768293247444,0.099,140.65,140.62,7.80973158]
[1768293247644,3.33960025,140.65,140.62,7.80973158]
[1768293248743,0.099,140.65,140.62,7.80973158]
[1768293251356,0.62614717,140.67,140.63,0.6978569]
[1768293251524,3.86674742,140.67,140.63,0.6978569]
[1768293251729,3.84124233,140.67,140.64,0.6978569]
[1768293252046,3.24060025,140.66,140.64,0.6978569]
[1768293252239,3.84124233,140.67,140.64,0.6978569]
[1768293252921,3.24060025,140.66,140.64,0.6978569]
[1768293253121,3.24060025,140.66,140.62,0.6978569]
[1768293253740,3.84124233,140.66,140.62,0.6978569]
[1768293254247,3.24060025,140.65,140.62,0.6978569]
[1768293254547,3.24060025,140.65,140.63,7.11085244]
[1768293255341,0.59562565,140.64,140.62,7.1112229]
[1768293255918,0.59562565,140.64,140.62,7.8189993]
[1768293256139,3.84124233,140.65,140.62,7.8189993]
[1768293264750,3.33960025,140.64,140.61,7.11186971]
[1768293265045,3.24060025,140.68,140.6,7.82004092]
[1768293265046,3.8362259,140.63,140.6,7.82004092]
[1768293266827,0.59562565,140.63,140.6,7.82004092]
[1768293269355,3.84124233,140.64,140.61,0.7077764]
[1768293270952,3.24060025,140.63,140.61,0.7077764]
[1768293271636,0.60064208,140.64,140.61,0.7077764]
[1768293271838,0.099,140.63,140.6,0.7077764]
[1768293272956,3.24060025,140.64,140.6,0.7077764]
[1768293273133,4.59477054,140.63,140.59,3.24060025]
[1768293273338,3.90652078,140.66,140.59,3.24060025]
[1768293273555,0.66592053,140.65,140.6,4.963761]
[1768293273859,0.66592053,140.65,140.62,7.81914035]
[1768293276358,3.90652078,140.65,140.62,7.81914035]
[1768293280365,0.66592053,140.65,140.62,7.81914035]
[1768293280569,0.67090812,140.64,140.61,0.69219283]
[1768293281963,0.67090812,140.65,140.62,7.80355678]
[1768293282170,0.67090812,140.67,140.63,0.69219283]
[1768293282345,0.67090812,140.68,140.65,0.69219283]
[1768293283575,0.67090812,140.68,140.65,7.80190449]
[1768293284260,0.67090812,140.67,140.65,7.10971166]
[1768293284459,2.74331283,140.67,140.64,0.69219283]
[1768293284865,0.1,140.73,140.66,0.69219283]
[1768293285072,2.07240471,140.7,140.66,0.69219283]
[1768293285759,2.07240471,140.71,140.66,7.80119075]
[1768293286074,5.31874923,140.7,140.67,0.69219283]
[1768293286276,2.07240471,140.71,140.67,0.69219283]
[1768293286476,5.31757527,140.7,140.67,0.69219283]
[1768293286661,2.07240471,140.71,140.67,0.69219283]
[1768293286862,5.31757527,140.7,140.67,0.69219283]
[1768293287071,2.72713867,140.71,140.68,0.69219283]
[1768293287262,5.31756433,140.7,140.68,0.69219283]
[1768293287452,2.72713867,140.71,140.68,0.69219283]
[1768293287656,5.31647319,140.7,140.68,0.69219283]
[1768293287960,2.72713867,140.71,140.68,0.69219283]
[1768293288171,5.31647448,140.7,140.68,0.69219283]
[1768293288378,2.72713867,140.71,140.68,0.69219283]
[1768293288678,5.31548421,140.7,140.68,0.69219283]
[1768293288979,2.72713867,140.71,140.68,0.69219283]
[1768293289179,5.31548291,140.7,140.68,0.69219283]
[1768293289363,2.72713867,140.71,140.68,0.69219283]
[1768293289663,5.3145759,140.7,140.68,0.69219283]
[1768293289866,2.72713867,140.71,140.68,0.69219283]
[1768293290063,5.3145759,140.7,140.68,0.69219283]
[1768293290367,2.72713867,140.71,140.68,0.69219283]
[1768293290559,5.31399453,140.7,140.68,0.69219283]
[1768293290758,2.72713867,140.71,140.68,0.69219283]
[1768293290974,5.31399583,140.7,140.68,0.69219283]
[1768293291175,2.72713867,140.71,140.68,0.69219283]
[1768293291356,5.31399583,140.7,140.68,0.69219283]
[1768293291557,2.72713867,140.71,140.68,0.69219283]
[1768293291757,5.31323722,140.7,140.68,0.69219283]
[1768293291975,2.72713867,140.71,140.68,0.69219283]
[1768293292177,5.31323722,140.7,140.68,0.69219283]
[1768293292374,2.72713867,140.71,140.68,0.69219283]
[1768293292563,5.31254364,140.7,140.68,0.69219283]
[1768293292767,2.72713867,140.71,140.68,0.69219283]
[1768293292967,5.31254234,140.7,140.68,0.69219283]
[1768293293160,2.72713867,140.71,140.68,0.69219283]
[1768293293365,5.31254142,140.7,140.68,0.69219283]
[1768293293662,5.31254142,140.69,140.68,0.69219283]
[1768293293860,3.9311002,140.69,140.68,0.69219283]
[1768293294066,1.7561002,140.69,140.66,7.10934167]
[1768293294265,2.74331283,140.71,140.66,7.10934167]
[1768293294479,2.74331283,140.71,140.67,0.07026604]
[1768293296777,2.74331283,140.72,140.67,0.07026604]
[1768293296966,2.07240471,140.71,140.67,0.07026604]
[1768293297490,2.74331283,140.71,140.67,0.07026604]
[1768293298191,0.67090812,140.7,140.67,0.07026604]
[1768293299586,0.67090812,140.72,140.68,0.07026604]
[1768293299778,0.77090812,140.73,140.7,0.07026604]
[1768293299971,0.07450269,140.73,140.7,0.07026604]
[1768293300893,0.67090812,140.75,140.71,0.07026604]
[1768293301380,2.74331283,140.75,140.71,0.07026604]
[1768293301586,2.74331283,140.74,140.7,0.07026604]
[1768293304570,0.67090812,140.74,140.7,0.07026604]
[1768293304773,2.74331283,140.74,140.7,0.07026604]
[1768293305293,0.69888929,140.73,140.7,0.07026604]
[1768293306202,2.771294,140.73,140.7,0.07026604]
[1768293306783,2.07240471,140.73,140.7,0.07026604]
[1768293307589,2.771294,140.74,140.7,0.07026604]
[1768293309707,0.69888929,140.74,140.7,0.07026604]
[1768293309903,0.69888929,140.74,140.7,2.14267075]
[1768293310206,0.1,140.77,140.73,0.70828189]
[1768293310382,0.07450592,140.77,140.73,0.70828189]
[1768293311403,2.14691063,140.77,140.73,0.70828189]
[1768293311710,0.07450592,140.77,140.73,0.70828189]
[1768293311882,2.14691063,140.77,140.74,7.10530055]
[1768293312082,2.84579992,140.77,140.74,7.10530055]
[1768293312483,2.84579992,140.77,140.74,7.81358244]
[1768293312703,0.69888929,140.76,140.74,7.10530055]
[1768293314114,0.69888929,140.76,140.73,7.10580544]
[1768293316212,2.07240471,140.76,140.73,7.81592702]
[1768293316801,0.75782177,140.77,140.73,7.81592702]
[1768293317123,2.07240471,140.76,140.73,7.81592702]
[1768293317984,0.75782177,140.77,140.73,7.81592702]
[1768293318190,2.07240471,140.76,140.73,7.81592702]
[1768293320212,0.07450592,140.77,140.74,0.71012158]
[1768293320414,2.14691063,140.77,140.74,0.71012158]
[1768293320807,2.75572056,140.76,140.73,7.81592702]
[1768293321619,2.75572056,140.74,140.71,0.71012158]
[1768293321796,2.75572056,140.74,140.71,7.81647262]
[1768293323016,2.07240471,140.75,140.73,7.10580544]
[1768293323315,2.07240471,140.75,140.73,7.81592702]
[1768293323518,2.75572056,140.75,140.72,0.71012158]
[1768293325221,2.75572056,140.75,140.73,7.10580544]
[1768293325716,2.07240471,140.75,140.73,7.81592702]
[1768293326409,2.83022648,140.77,140.73,0.04415533]
[1768293326603,0.75782177,140.77,140.73,0.04415533]
[1768293327117,2.83022648,140.77,140.73,0.04415533]
[1768293328104,2.83022648,140.77,140.73,24.91447437]
[1768293329004,1e-08,140.77,140.74,0.04415533]
[1768293329322,1e-08,140.77,140.75,13.02415533]
[1768293329697,1e-08,140.77,140.76,7.10429099]
[1768293330825,1e-08,140.77,140.76,7.04429099]
[1768293331223,0.78331585,140.79,140.76,7.08844632]
[1768293332009,0.1,140.79,140.76,7.08844632]
[1768293332611,1e-08,140.79,140.77,0.04415533]
[1768293333039,2.75572056,140.81,140.78,12.98]
[1768293333710,2.75572056,140.8,140.78,12.98]
[1768293335727,2.75572056,140.8,140.74,2.07240471]
[1768293335728,0.70139854,140.78,140.75,7.10443039]
[1768293335905,2.77380325,140.78,140.75,7.10443039]
[1768293337018,0.70139854,140.78,140.76,7.10398033]
[1768293337225,2.77380325,140.78,140.76,7.10398033]
[1768293338012,2.77380325,140.78,140.75,7.10462552]
[1768293338730,2.07240471,140.78,140.75,7.14878085]
[1768293340022,2.77380325,140.78,140.75,7.14878085]
[1768293341525,3.93367633,140.78,140.75,7.14878085]
[1768293341730,3.93367633,140.77,140.75,7.10462552]
[1768293341930,3.23227779,140.76,140.75,7.10462552]
[1768293342333,3.93367633,140.77,140.75,7.10462552]
[1768293342823,3.93367633,140.77,140.73,0.04415533]
[1768293347141,3.93367633,140.74,140.72,7.1063104]
[1768293347317,3.23227779,140.73,140.7,17.76797546]
[1768293347517,3.23227779,140.72,140.7,17.76797546]
[1768293348130,3.23227779,140.76,140.7,17.76797546]
[1768293348434,3.23227779,140.73,140.71,7.1064361]
[1768293349240,3.93367633,140.73,140.71,7.1064361]
[1768293352835,3.23227779,140.73,140.71,7.1064361]
[1768293353920,3.23227779,140.73,140.7,7.81844766]
[1768293353921,3.23227779,140.72,140.7,7.81844766]
[1768293354333,3.23227779,140.72,140.7,7.10722678]
[1768293357449,0.70139854,140.73,140.7,7.10722678]
[1768293357650,3.23227779,140.72,140.7,7.10722678]
[1768293357852,3.2022778,140.72,140.7,7.10722678]
[1768293358546,3.17227781,140.72,140.7,7.10722678]
[1768293358749,0.70139854,140.73,140.7,7.81844766]
[1768293359048,3.23227779,140.72,140.7,7.81844766]
[1768293360623,3.93367633,140.72,140.7,7.10722678]
[1768293360829,0.70139854,140.7,140.68,7.10801325]
[1768293361028,3.23227779,140.69,140.67,7.10864587]
[1768293361337,0.67139855,140.7,140.67,7.10864587]
[1768293361543,3.23227779,140.69,140.67,7.10864587]
[1768293363031,3.93367633,140.69,140.67,7.10864587]
[1768293363249,3.23227779,140.69,140.67,7.10864587]